bitfinex-derivatives/quotes_ETHF0:USTF0_20210703
["timestamp","ask_amount","ask_price","bid_price","bid_amount"]
[1625355827348,4.52087,2218.6,2216.4,15.5409]
[1625355827447,4.52087,2218.6,2216.5,1.0]
[1625355827547,2.85941794,2218.5,2216.5,1.0]
[1625355827800,2.85941794,2218.5,2216.6,16.485173]
[1625355827897,2.85941794,2218.5,2218.2,2.20527]
[1625355827999,2.20527,2218.6,2218.2,2.20527]
[1625355828000,4.06464788,2218.6,2218.2,2.20527]
[1625355828197,4.06464788,2218.6,2218.3,16.462412]
[1625355829151,2.20527,2218.6,2218.3,16.462412]
[1625355829606,4.06413533,2218.6,2218.3,16.462412]
[1625355829906,2.20527,2218.4,2218.3,16.462412]
[1625355830005,4.75007,2218.4,2218.3,16.462412]
[1625355830208,4.75007,2218.4,2218.0,16.465352]
[1625355830554,4.75007,2218.4,2218.3,16.396765]
[1625355830804,4.75007,2218.4,2218.1,16.451257]
[1625355831008,4.75007,2218.4,2217.6,16.371275]
[1625355831157,4.75007,2218.4,2218.3,16.47163]
[1625355831309,4.75007,2218.4,2217.4,2.20527]
[1625355831455,4.75007,2218.4,2217.7,16.26247]
[1625355831656,4.75007,2218.4,2218.3,16.356529]
[1625355831755,2.20527,2218.4,2218.3,16.356529]
[1625355831856,1.85882268,2218.6,2218.3,16.356529]
[1625355831957,1.85882268,2218.6,2218.3,6.86494]
[1625355832055,5.65736927,2218.9,2218.3,6.86494]
[1625355832056,1.85866421,2218.8,2218.3,6.86494]
[1625355832158,1.85866421,2218.8,2218.3,44.74244]
[1625355832258,1.85866421,2218.8,2218.4,16.319857]
[1625355832709,2.20527,2218.9,2218.4,16.319857]
[1625355833009,4.06367379,2218.9,2218.4,16.319857]
[1625355833960,50.3534,2218.8,2218.7,2.20527]
[1625355834281,50.3534,2218.8,2218.7,18.673309]
[1625355834831,4.06367379,2218.9,2218.7,18.673309]
[1625355836437,2.20527,2218.9,2218.7,18.673309]
[1625355837290,4.06333606,2218.9,2218.7,18.673309]
[1625355837788,2.20527,2218.9,2218.7,18.673309]
[1625355841152,4.58997,2218.9,2218.7,18.673309]
[1625355841855,6.4479303,2218.9,2218.7,18.673309]
[1625355842456,1.85797572,2218.8,2218.7,18.673309]
[1625355843507,1.85797572,2218.8,2218.7,16.468039]
[1625355843908,2.65396792,2218.8,2218.7,16.468039]
[1625355846658,5.16896792,2218.8,2218.0,2.20527]
[1625355846961,1.85736514,2218.7,2218.0,2.20527]
[1625355847210,1.85736514,2218.7,2218.1,16.288097]
[1625355848064,4.41054,2218.2,2218.1,16.288097]
[1625355849614,2.20527,2218.2,2218.1,16.288097]
[1625355850016,1.85732362,2218.9,2218.8,2.20527]
[1625355850017,4.06259362,2218.9,2218.8,2.20527]
[1625355850116,3.44931529,2219.2,2218.8,2.20527]
[1625355850216,3.44931529,2219.2,2218.8,4.86687]
[1625355850320,1.529e-05,2219.2,2218.8,4.86687]
[1625355850419,2.65301803,2219.4,2218.8,21.258323]
[1625355850971,4.24383675,2220.5,2218.8,21.258323]
[1625355851481,10.00299982,2220.6,2219.7,37.9943]
[1625355851581,9.00299982,2220.6,2219.7,41.3054]
[1625355851680,9.00299982,2220.6,2219.7,3.3111]
[1625355851831,4.759,2220.6,2219.8,16.443517]
[1625355852032,2.20527,2220.5,2220.4,2.20527]
[1625355852134,48.19487,2220.5,2220.4,2.20527]
[1625355852381,48.19487,2220.5,2220.4,18.565333]
[1625355852482,2.20527,2220.5,2220.4,18.565333]
[1625355852681,2.20527,2220.5,2220.4,17.49656717]
[1625355854038,4.41054,2220.5,2220.4,17.49656717]
[1625355855341,4.41054,2220.5,2220.4,1.13650417]
[1625355855692,4.41054,2220.5,2218.0,46.5929]
[1625355855892,4.41054,2220.5,2218.1,1.0]
[1625355856093,2.20527,2220.0,2219.7,2.20527]
[1625355856192,5.49937,2220.0,2219.7,2.20527]
[1625355856392,5.49937,2220.0,2219.8,16.394777]
[1625355857244,5.49937,2220.0,2219.7,2.20527]
[1625355857844,5.0,2219.9,2216.8,9.8251]
[1625355857947,5.0,2219.9,2217.9,1.0]
[1625355858045,2.20527,2219.3,2219.0,2.20527]
[1625355858248,5.30527,2219.3,2219.0,2.20527]
[1625355858547,5.30527,2219.3,2219.1,16.480807]
[1625355860054,2.20527,2219.2,2219.1,16.480807]
[1625355860603,5.22327,2219.2,2219.1,16.480807]
[1625355862803,10.22327,2219.2,2219.0,2.20527]
[1625355863008,5.22327,2219.2,2219.0,2.20527]
[1625355864472,5.22327,2219.2,2217.2,1.0]
[1625355864630,1.0,2219.1,2217.2,1.0]
[1625355865139,1.0,2219.1,2217.3,16.413778]
[1625355865242,1.0,2219.1,2217.3,17.413778]
[1625355865540,1.0,2219.1,2217.3,1.0]
[1625355865740,5.22327,2219.2,2217.2,16.416183]
[1625355865890,5.22327,2219.2,2217.4,16.26092]
[1625355866240,57.39667,2218.6,2218.4,2.20527]
[1625355866492,57.39667,2218.6,2218.5,16.479023]
[1625355866790,5.68367,2218.6,2218.5,16.479023]
[1625355868345,2.20527,2218.6,2218.5,16.479023]
[1625355872952,2.20527,2218.6,2218.5,19.486823]
[1625355877063,2.20527,2218.6,2218.5,16.479023]
[1625355877966,4.25093352,2219.4,2218.5,16.479023]
[1625355878068,4.25093352,2219.4,2218.5,20.014923]
[1625355878267,2.20527,2219.4,2219.3,4.41054]
[1625355878369,4.25057289,2219.6,2219.3,4.41054]
[1625355879237,6.455982,2219.7,2219.3,4.41054]
[1625355879490,6.455982,2219.7,2219.4,16.229771]
[1625355879839,2.20527,2219.7,2219.4,16.229771]
[1625355880236,2.20527,2219.7,2219.6,2.20527]
[1625355881691,2.20527,2219.7,2219.6,18.540453]
[1625355882145,2.20527,2219.7,2219.6,16.335183]
[1625355882644,2.20527,2219.7,2219.3,2.20527]
[1625355882743,5.86167,2219.7,2219.3,2.20527]
[1625355882944,5.86167,2219.7,2219.3,1.13611814]
[1625355883201,4.25276683,2219.5,2219.3,1.13611814]
[1625355883299,44.3184,2219.4,2219.3,1.13611814]
[1625355883801,44.3184,2219.4,2219.0,2.20527]
[1625355884102,48.57130795,2219.4,2219.0,2.20527]
[1625355884254,4.41054,2219.1,2218.7,2.20527]
[1625355884355,7.14684,2219.1,2218.7,2.20527]
[1625355885205,12.14684,2219.1,2218.7,2.20527]
[1625355885406,7.14684,2219.1,2218.7,2.20527]
[1625355885659,11.40061314,2219.1,2218.7,2.20527]
[1625355886310,2.20527,2218.8,2218.7,2.20527]
[1625355886814,48.24127,2218.8,2218.7,2.20527]
[1625355887211,2.20527,2218.8,2218.7,2.20527]
[1625355889819,51.23727,2218.8,2218.7,2.20527]
[1625355891926,2.20527,2218.8,2218.7,2.20527]
[1625355894187,41.82237,2218.8,2218.7,2.20527]
[1625355895557,41.82237,2218.8,2218.5,2.20527]
[1625355895806,41.82237,2218.8,2217.3,1.0]
[1625355895906,41.82237,2218.8,2217.2,14.5622]
[1625355896307,2.20527,2218.1,2218.0,2.20527]
[1625355896409,45.01807,2218.1,2218.0,2.20527]
[1625355896663,2.20527,2218.1,2218.0,2.20527]
[1625355897167,2.20527,2218.1,2218.0,18.550463]
[1625355897469,2.20527,2218.8,2218.0,21.618563]
[1625355898417,4.41054,2218.8,2218.7,1.62551492]
[1625355898519,4.41054,2218.8,2218.7,4.23131492]
[1625355898768,4.41054,2218.8,2218.7,20.67264092]
[1625355900726,2.20527,2218.8,2218.7,20.67264092]
[1625355901382,8.98078634,2219.9,2218.7,20.67264092]
[1625355901383,4.25683009,2219.4,2218.7,20.67264092]
[1625355901927,5.32103761,2219.6,2218.7,20.67264092]
[1625355902178,12.74055642,2220.1,2218.7,20.67264092]
[1625355902179,5.3205188,2220.0,2218.7,20.67264092]
[1625355902379,5.3205188,2220.0,2219.9,4.41054]
[1625355902529,5.3205188,2220.0,2219.9,61.49904]
[1625355902779,5.3205188,2220.0,2219.9,77.936533]
[1625355903078,2.20527,2220.5,2219.9,77.936533]
[1625355903832,5.31857436,2220.6,2219.9,77.936533]
[1625355904234,5.31493265,2221.2,2219.9,77.936533]
[1625355904433,7.52020265,2221.2,2221.1,7.66254]
[1625355904684,2.20527,2221.2,2221.1,23.886269]
[1625355906144,2.20527,2221.2,2221.1,6.59407836]
[1625355908149,2.20527,2221.2,2221.1,3.252]
[1625355908249,2.20527,2221.2,2220.0,1.0]
[1625355908355,5.76387,2221.2,2219.4,15.4749]
[1625355908449,2.20527,2220.5,2220.4,2.20527]
[1625355909004,4.97447,2220.5,2220.1,2.20527]
[1625355909759,39.5289,2220.2,2220.1,2.20527]
[1625355910472,41.73417,2220.2,2220.1,2.20527]
[1625355910923,2.20527,2220.2,2220.1,2.20527]
[1625355912775,2.20527,2220.2,2220.1,18.684162]
[1625355913677,2.20527,2220.2,2219.0,1.0]
[1625355913779,5.85147,2220.2,2217.4,3.27346543]
[1625355913978,5.85147,2220.2,2217.6,0.8985]
[1625355914080,5.85147,2220.2,2217.2,70.3658]
[1625355914278,42.5668,2219.2,2218.3,16.394796]
[1625355914479,42.5668,2219.2,2219.1,2.20527]
[1625355914730,42.5668,2219.2,2219.1,18.509721]
[1625355915080,2.20527,2219.3,2219.1,18.509721]
[1625355915330,2.20527,2219.3,2219.1,2.20527]
[1625355916082,2.20527,2219.3,2218.0,1.0]
[1625355916187,2.20527,2219.3,2217.9,51.8435]
[1625355916432,2.20527,2219.3,2218.7,2.20527]
[1625355916533,2.20527,2218.9,2218.7,2.20527]
[1625355916634,2.20527,2218.9,2218.5,2.20527]
[1625355917684,49.9431,2218.8,2218.5,2.20527]
[1625355918436,2.20527,2218.6,2218.5,2.20527]
[1625355919239,2.20527,2218.6,2218.2,2.20527]
[1625355920449,2.20527,2218.3,2218.2,2.20527]
[1625355920548,5.27717,2218.3,2218.2,2.20527]
[1625355921450,5.27717,2218.3,2218.2,18.516263]
[1625355921652,2.20527,2218.6,2218.2,18.516263]
[1625355922551,2.20527,2218.6,2218.5,2.20527]
[1625355923253,2.20527,2218.6,2218.2,2.20527]
[1625355923354,4.65417,2218.6,2218.2,2.20527]
[1625355923603,9.65417,2218.6,2218.2,2.20527]
[1625355924005,4.65417,2218.6,2218.2,2.20527]
[1625355924106,4.65417,2218.6,2217.0,1.0]
[1625355924208,4.65417,2218.6,2215.8,3.28214811]
[1625355924311,4.65417,2218.6,2216.6,55.0802]
[1625355924456,4.65417,2218.6,2217.7,2.20527]
[1625355924457,2.20527,2217.8,2217.7,2.20527]
[1625355924907,2.20527,2217.8,2217.7,18.457608]
[1625355927563,2.20527,2217.8,2217.7,2.20527]
[1625355930366,2.20527,2217.8,2217.7,18.709929]
[1625355930871,2.20527,2217.8,2217.7,16.504659]
[1625355931169,2.20527,2217.8,2217.6,16.347396]
[1625355931517,42.8025,2217.7,2217.6,16.347396]
[1625355931768,2.20527,2217.8,2217.6,16.347396]
[1625355932472,58.98517,2217.8,2217.6,16.347396]
[1625355933485,2.20527,2217.8,2217.6,16.347396]
[1625355938600,2.20527,2217.8,2217.6,18.552666]
[1625355942060,2.20527,2217.8,2217.6,2.20527]
[1625355956772,2.20527,2217.8,2217.3,2.20527]
[1625355957319,2.20527,2217.8,2217.4,16.378196]
[1625355958824,2.20527,2217.5,2217.4,16.378196]
[1625355965600,53.84717,2217.5,2217.4,16.378196]
[1625355965748,2.20527,2217.5,2217.4,16.378196]
[1625355968556,5.73297,2217.5,2217.4,16.378196]
[1625355968706,53.17097,2217.5,2217.4,16.378196]
[1625355969207,5.73297,2217.5,2217.4,16.378196]
[1625355976433,5.73297,2217.5,2217.4,18.870696]
[1625355976434,2.20527,2217.5,2217.4,18.870696]
[1625355978038,2.32498757,2218.4,2217.4,18.870696]
[1625355978136,1.32498757,2218.4,2217.4,18.870696]
[1625355978338,1.32480727,2218.7,2217.4,18.870696]
[1625355978889,2.20527,2218.6,2218.5,2.20527]
[1625355978990,2.20527,2218.6,2218.5,5.03857]
[1625355979189,2.20527,2218.6,2218.5,21.499369]
[1625355980146,1.32448488,2219.1,2218.5,21.499369]
[1625355980547,5.23897821,2219.7,2218.5,21.499369]
[1625355980548,1.32442396,2219.4,2218.5,21.499369]
[1625355980949,1.32442396,2219.4,2219.3,2.20527]
[1625355981052,3.52962532,2219.5,2219.3,4.98717]
[1625355981148,1.32435532,2219.5,2219.3,4.98717]
[1625355981249,1.32435532,2219.5,2219.3,21.319333]
[1625355981399,5.29742129,2220.4,2219.3,21.319333]
[1625355981400,1.3243121,2219.6,2219.3,21.319333]
[1625355981799,1.32428762,2219.7,2219.3,21.319333]
[1625355982353,1.32403183,2220.0,2219.3,21.319333]
[1625355982953,3.52930183,2220.0,2219.9,5.61007]
[1625355983254,2.20527,2220.0,2219.9,5.61007]
[1625355984504,47.76392199,2220.0,2219.9,5.61007]
[1625355984904,49.96919199,2220.0,2219.9,5.61007]
[1625355985104,49.96919199,2220.0,2219.9,2.33590965]
[1625355985208,59.22461522,2220.0,2219.3,2.20527]
[1625355985317,59.22461522,2220.0,2218.4,15.3623]
[1625355985769,1.32398213,2219.5,2218.4,15.3623]
[1625355985869,4.07898213,2219.5,2218.4,15.3623]
[1625355985969,4.07898213,2219.5,2218.5,16.383699]
[1625355986172,1.32398765,2219.4,2218.5,16.383699]
[1625355986520,1.32398765,2219.4,2217.4,16.335089]
[1625355986673,1.0,2219.3,2217.5,1.0]
[1625355986772,1.0,2219.3,2218.6,16.289979]
[1625355986872,1.32403712,2219.3,2218.6,16.289979]
[1625355986972,2.20527,2219.1,2218.9,2.20527]
[1625355987823,44.1558,2219.0,2218.9,2.20527]
[1625355987978,47.0754,2219.0,2218.9,2.20527]
[1625355988174,48.39958266,2219.0,2218.9,2.20527]
[1625355988424,47.0754,2219.0,2218.9,2.20527]
[1625355988925,49.28067,2219.0,2218.9,2.20527]
[1625355989375,49.28067,2219.0,2218.7,2.20527]
[1625355989627,5.0,2218.9,2215.8,16.47369009]
[1625355989775,5.9029,2218.9,2216.8,1.0]
[1625355989879,1.32429557,2218.8,2216.8,1.0]
[1625355990226,1.32429557,2218.8,2217.4,16.468285]
[1625355990377,1.32442112,2218.6,2217.4,16.468285]
[1625355990728,1.32452512,2218.4,2217.4,16.468285]
[1625355990832,5.00422512,2218.4,2217.4,16.468285]
[1625355990933,5.00422512,2218.4,2217.6,2.20527]
[1625355990934,2.20527,2217.7,2217.6,2.20527]
[1625355991034,5.83707,2217.7,2217.6,2.20527]
[1625355992992,8.04234,2217.7,2217.6,2.20527]
[1625355996399,8.04234,2217.7,2217.6,18.529747]
[1625355996598,4.41054,2217.7,2217.6,18.529747]
[1625356000868,4.41054,2217.7,2217.6,21.680247]
[1625356001217,1.32783579,2218.1,2217.6,21.680247]
[1625356002379,1.32849422,2218.0,2217.6,21.680247]
[1625356002981,3.53376422,2218.0,2217.9,2.20527]
[1625356003282,3.53376422,2218.0,2217.9,18.666714]
[1625356003383,2.20527,2218.0,2217.9,18.666714]
[1625356003733,3.53493598,2218.0,2217.9,18.666714]
[1625356004584,2.20527,2218.0,2217.9,18.666714]
[1625356005191,4.86460195,2218.2,2217.9,18.666714]
[1625356005286,2.65933195,2218.2,2217.9,18.666714]
[1625356005540,1.32971132,2218.0,2217.9,18.666714]
[1625356005838,1.32983819,2218.3,2217.9,18.666714]
[1625356006740,2.6593897,2218.9,2217.9,18.666714]
[1625356006992,2.6593897,2218.9,2218.8,4.41054]
[1625356007090,2.6593897,2218.9,2218.8,7.23964]
[1625356007243,2.65917587,2219.0,2218.8,7.23964]
[1625356007394,2.65917587,2219.0,2218.8,23.475887]
[1625356007693,2.65930715,2219.1,2218.8,23.475887]
[1625356007793,2.65930715,2219.1,2218.9,39.2878]
[1625356008096,2.65930715,2219.1,2218.8,23.475887]
[1625356008196,2.65942303,2219.0,2218.8,7.23964]
[1625356008396,2.65942303,2219.0,2218.9,16.297081]
[1625356008948,3.45701933,2219.1,2218.9,16.297081]
[1625356009098,2.20527,2219.0,2218.5,2.20527]
[1625356009397,6.41505124,2218.6,2218.5,2.20527]
[1625356009547,51.25395124,2218.6,2218.5,2.20527]
[1625356010350,48.5944,2218.6,2218.5,2.20527]
[1625356010701,3.7555,2218.6,2218.5,2.20527]
[1625356011001,5.96077,2218.6,2218.5,2.20527]
[1625356011655,8.62043327,2218.6,2218.5,18.614445]
[1625356011755,4.86493327,2218.6,2218.5,18.614445]
[1625356012105,2.20527,2218.6,2218.5,18.614445]
[1625356013506,2.20527,2218.6,2218.5,2.20527]
[1625356013622,5.98387,2218.6,2218.5,2.20527]
[1625356014723,50.55937,2218.6,2218.5,2.20527]
[1625356015024,54.01735192,2218.6,2218.5,2.20527]
[1625356015174,9.44185192,2218.6,2218.5,2.20527]
[1625356015931,5.98387,2218.6,2218.5,2.20527]
[1625356016333,9.44187049,2218.6,2218.5,2.20527]
[1625356017033,5.98387,2218.6,2218.5,2.20527]
[1625356018337,9.44170114,2218.6,2218.5,2.20527]
[1625356018739,5.98387,2218.6,2218.5,2.20527]
[1625356019139,53.47837,2218.6,2218.5,2.20527]
[1625356019541,57.73472876,2218.6,2218.5,2.20527]
[1625356019940,53.47837,2218.6,2218.5,2.20527]
[1625356020488,5.98387,2218.6,2218.5,2.20527]
[1625356022192,4.25608539,2218.7,2218.5,2.20527]
[1625356022193,4.25608539,2218.7,2218.5,5.91817]
[1625356022293,5.32034185,2218.9,2218.5,5.91817]
[1625356022294,3.45783519,2218.6,2218.5,5.91817]
[1625356022543,0.5819719,2218.6,2218.5,45.84677]
[1625356022642,4.25579716,2218.9,2218.5,45.84677]
[1625356022745,1.32984383,2220.1,2218.5,45.84677]
[1625356022746,2.65957381,2218.8,2218.5,45.84677]
[1625356022893,2.65957381,2218.8,2218.5,62.108459]
[1625356023146,2.65906719,2219.2,2218.7,2.20527]
[1625356023497,2.65906719,2219.2,2218.8,16.356059]
[1625356023597,2.65844031,2219.3,2218.8,16.356059]
[1625356024748,2.65749577,2219.4,2218.8,16.356059]
[1625356025148,2.65749577,2219.4,2219.3,4.41054]
[1625356025298,2.65749577,2219.4,2219.3,7.00694]
[1625356025451,2.65749577,2219.4,2219.3,23.476188]
[1625356025801,2.65728235,2219.5,2219.3,23.476188]
[1625356026153,1.74708235,2219.5,2219.3,23.476188]
[1625356026253,1.74708235,2219.5,2219.4,45.9359]
[1625356026453,2.65680354,2219.8,2219.4,45.9359]
[1625356026553,2.65680354,2219.8,2219.4,62.330607]
[1625356027109,6.45615567,2220.3,2219.7,2.20527]
[1625356027459,6.45615567,2220.3,2219.8,16.279902]
[1625356027759,2.20527,2220.3,2219.8,16.279902]
[1625356029159,2.20527,2220.3,2220.2,4.41054]
[1625356029479,2.20527,2220.3,2220.2,20.831506]
[1625356030630,2.20527,2220.3,2220.2,67.118206]
[1625356030981,4.24855787,2220.5,2220.2,67.118206]
[1625356031181,4.24633131,2220.7,2220.2,67.118206]
[1625356031585,4.24633131,2220.7,2220.2,20.831506]
[1625356031983,1.85759518,2220.4,2220.2,20.831506]
[1625356033435,1.85617851,2220.5,2220.2,20.831506]
[1625356034439,1.85616616,2220.6,2220.2,20.831506]
[1625356034895,4.759,2220.9,2220.2,20.831506]
[1625356035242,4.759,2220.9,2220.8,4.41054]
[1625356035544,4.759,2220.9,2220.8,20.662964]
[1625356036095,2.20527,2221.0,2220.8,20.662964]
[1625356036798,2.20527,2221.0,2220.8,4.41054]
[1625356036998,6.96427,2221.0,2220.8,4.41054]
[1625356037099,6.96427,2221.0,2220.8,3.34192817]
[1625356037198,45.8651,2220.9,2220.8,3.34192817]
[1625356037298,49.4128,2220.9,2220.8,3.34192817]
[1625356037403,49.4128,2220.9,2219.9,1.0]
[1625356037499,49.4128,2220.9,2219.5,14.7776]
[1625356037701,3.5477,2220.9,2219.5,14.7776]
[1625356037950,1.85396726,2220.6,2219.5,14.7776]
[1625356038051,1.85396726,2220.6,2219.6,16.409059]
[1625356038754,1.85391853,2220.5,2219.6,16.409059]
[1625356039002,54.1522,2220.4,2219.6,16.409059]
[1625356039203,2.20527,2220.3,2220.2,2.20527]
[1625356041257,4.41054,2220.3,2220.2,2.20527]
[1625356042309,54.56604,2220.3,2220.2,2.20527]
[1625356042820,61.41895611,2220.3,2219.9,2.20527]
[1625356043223,61.41895611,2220.3,2218.8,1.0]
[1625356043224,54.56604,2220.3,2219.6,2.20527]
[1625356043320,2.20527,2220.0,2219.6,2.20527]
[1625356043823,4.05842375,2220.0,2219.6,2.20527]
[1625356044678,5.25837949,2219.9,2219.6,2.20527]
[1625356045083,1.85318428,2219.8,2219.6,2.20527]
[1625356045384,2.20527,2219.7,2219.6,2.20527]
[1625356046636,2.20527,2219.7,2219.4,2.20527]
[1625356047287,2.20527,2219.6,2219.4,2.20527]
[1625356053402,4.05890189,2219.6,2219.4,2.20527]
[1625356053906,2.20527,2219.6,2219.4,2.20527]
[1625356054853,4.88237,2219.6,2219.4,2.20527]
[1625356056762,6.73625593,2219.6,2219.4,2.20527]
[1625356058162,6.73625593,2219.6,2218.7,15.0813]
[1625356058516,6.73625593,2219.6,2217.4,1.0]
[1625356058625,1.0,2219.5,2217.4,1.0]
[1625356058726,1.85431235,2219.3,2217.4,1.0]
[1625356058826,2.85431235,2219.3,2217.4,1.0]
[1625356059078,45.4073,2219.0,2217.5,16.431212]
[1625356059177,48.1255,2219.0,2217.5,16.431212]
[1625356059326,2.20527,2218.8,2218.7,2.20527]
[1625356061339,4.41054,2218.8,2218.7,2.20527]
[1625356061539,4.41054,2218.8,2218.7,18.440024]
[1625356066565,4.41054,2218.8,2218.7,2.20527]
[1625356066666,8.02144,2218.8,2217.8,1.0]
[1625356066817,8.02144,2218.8,2217.0,0.907]
[1625356066919,9.02144,2218.8,2217.0,0.907]
[1625356067370,2.20527,2218.2,2218.1,2.20527]
[1625356067518,4.79127,2218.2,2218.1,2.20527]
[1625356068431,4.79127,2218.2,2218.1,18.603149]
[1625356068680,2.20527,2218.2,2218.1,18.603149]
[1625356074445,2.20527,2218.2,2218.1,21.865449]
[1625356076397,2.20527,2218.2,2218.1,2.20527]
[1625356076697,52.53617,2218.2,2218.1,2.20527]
[1625356077096,2.20527,2218.2,2218.1,2.20527]
[1625356083717,2.20527,2218.2,2218.1,18.670288]
[1625356089392,2.20527,2218.2,2218.1,16.465018]
[1625356089695,2.20527,2218.2,2217.9,2.20527]
[1625356090301,2.20527,2218.2,2218.0,16.330037]
[1625356091502,2.20527,2218.1,2218.0,16.330037]
[1625356097367,2.20527,2218.1,2218.0,70.586437]
[1625356097620,2.20527,2218.1,2218.0,16.330037]
[1625356101128,1.85678643,2218.8,2218.0,16.330037]
[1625356101228,1.85678643,2218.8,2218.0,19.102937]
[1625356101540,1.85678643,2218.8,2218.7,4.41054]
[1625356101639,1.85673433,2219.0,2218.7,7.02544]
[1625356101839,1.85673433,2219.0,2218.7,23.355476]
[1625356102244,1.85668874,2219.1,2218.7,23.355476]
[1625356103543,4.759,2219.3,2219.0,2.20527]
[1625356103842,4.759,2219.3,2219.1,16.424496]
[1625356104143,1.85628825,2219.5,2219.1,16.424496]
[1625356105296,1.85628825,2219.5,2219.4,52.0112]
[1625356105498,1.85628825,2219.5,2219.1,16.424496]
[1625356105600,4.06155825,2219.5,2219.4,2.20527]
[1625356106354,4.06155825,2219.5,2219.4,18.568185]
[1625356106902,2.20527,2219.5,2219.4,18.568185]
[1625356108104,2.20527,2219.5,2219.4,16.362915]
[1625356108305,2.20527,2219.5,2218.1,1.0]
[1625356108406,8.6940803,2219.5,2217.9,1.0]
[1625356108554,8.6940803,2219.5,2217.2,42.4378]
[1625356108555,1.85657124,2219.2,2217.2,42.4378]
[1625356108954,1.85657124,2219.2,2217.9,16.480714]
[1625356109156,1.85663183,2219.1,2217.9,16.480714]
[1625356109610,2.20527,2219.0,2218.8,2.20527]
[1625356109912,2.20527,2219.0,2218.9,16.447412]
[1625356110010,4.06210633,2219.0,2218.9,16.447412]
[1625356110160,3.53820633,2219.0,2218.9,16.447412]
[1625356110261,3.44839097,2219.4,2218.9,16.447412]
[1625356110462,8.20682035,2219.8,2218.9,16.447412]
[1625356110811,8.20682035,2219.8,2219.7,48.7968]
[1625356110915,8.20682035,2219.8,2219.7,51.5244]
[1625356111164,3.44782035,2219.8,2219.7,67.92257]
[1625356111262,4.2434712,2220.0,2219.7,67.92257]
[1625356111513,3.44690413,2220.5,2219.7,67.92257]
[1625356111614,5.65217413,2220.5,2220.4,4.41054]
[1625356111763,3.44690413,2220.5,2220.4,7.74264]
[1625356112012,3.44690413,2220.5,2220.4,23.077136]
[1625356112213,19.14732111,2221.3,2220.6,50.5213]
[1625356112565,19.14732111,2221.3,2220.7,16.466178]
[1625356112915,4.2401473,2221.4,2220.7,16.466178]
[1625356113614,2.20527,2221.2,2221.1,2.20527]
[1625356113765,2.20527,2221.2,2221.1,4.81197]
[1625356113965,2.20527,2221.2,2221.1,21.263704]
[1625356114874,4.77467,2221.2,2221.1,21.263704]
[1625356123910,4.77467,2221.2,2221.1,20.19531106]
[1625356124306,2.5694,2221.2,2221.1,20.19531106]
[1625356124405,4.759,2221.8,2221.1,20.19531106]
[1625356125157,4.23135654,2222.1,2221.1,21.10231106]
[1625356125658,23.83492892,2222.3,2222.2,52.6669]
[1625356125908,8.98992892,2222.3,2222.2,52.6669]
[1625356126008,8.98992892,2222.3,2222.2,69.017078]
[1625356126110,4.759,2222.3,2222.2,66.3467092]
[1625356126209,4.759,2222.3,2222.2,16.350178]
[1625356126560,4.759,2222.3,2222.0,16.338781]
[1625356126861,4.759,2222.3,2222.2,16.394578]
[1625356127062,4.759,2222.3,2222.0,16.282636]
[1625356127414,4.759,2222.3,2222.2,16.243559]
[1625356127664,9.16954,2222.3,2222.0,16.232269]
[1625356127964,9.16954,2222.3,2222.2,16.298487]
[1625356128266,9.16954,2222.3,2222.0,16.250457]
[1625356129168,4.41054,2222.3,2222.0,16.250457]
[1625356129520,2.20527,2222.3,2222.0,16.250457]
[1625356129770,2.20527,2222.3,2222.2,2.20527]
[1625356130021,2.20527,2222.3,2222.2,18.461149]
[1625356130122,2.20527,2222.3,2222.2,21.807749]
[1625356130879,2.20527,2222.8,2222.2,21.807749]
[1625356131074,9.24183202,2224.3,2222.2,21.807749]
[1625356131174,3.85804687,2223.6,2222.2,21.807749]
[1625356131376,8.97948172,2223.7,2222.2,21.807749]
[1625356131725,8.97948172,2223.7,2223.6,4.41054]
[1625356132027,4.21963666,2224.3,2223.6,20.699707]
[1625356132478,4.21963666,2224.3,2224.2,40.618]
[1625356132580,8.97784272,2224.6,2224.2,40.618]
[1625356132880,8.97784272,2224.6,2224.2,56.906729]
[1625356133080,4.21884272,2224.6,2224.2,56.906729]
[1625356133179,4.21754312,2225.1,2224.2,56.906729]
[1625356133730,4.21754312,2225.1,2225.0,4.41054]
[1625356133931,4.759,2225.3,2225.0,4.41054]
[1625356134082,4.20729746,2226.0,2225.0,20.752498]
[1625356134280,6.57390228,2226.4,2225.0,20.752498]
[1625356134632,4.20627979,2226.5,2225.0,20.752498]
[1625356134785,48.8415,2226.2,2225.0,20.752498]
[1625356134985,4.759,2226.5,2225.0,20.752498]
[1625356135733,2.20527,2225.1,2225.0,20.752498]
[1625356136032,5.71307,2225.1,2225.0,20.752498]
[1625356136737,3.5078,2225.1,2225.0,20.752498]
[1625356137288,3.3553,2225.6,2225.0,20.752498]
[1625356137789,2.20527,2225.8,2225.5,4.41054]
[1625356138040,2.20527,2226.0,2225.5,20.838326]
[1625356138997,5.759,2227.6,2225.5,20.838326]
[1625356139097,4.759,2227.6,2225.5,20.838326]
[1625356139197,0.30189837,2227.5,2225.5,20.838326]
[1625356139603,14.942,2227.7,2225.5,20.838326]
[1625356139809,2.20527,2227.1,2227.0,2.20527]
[1625356140059,2.20527,2227.1,2227.0,18.523699]
[1625356140159,2.20527,2227.1,2227.0,17.45750545]
[1625356140357,2.20527,2227.1,2227.0,16.318429]
[1625356140460,2.20527,2227.1,2227.0,13.65291764]
[1625356140663,2.20527,2227.1,2226.7,16.164596]
[1625356141014,5.30147,2227.1,2225.2,16.24296]
[1625356141262,50.5485,2227.0,2226.8,16.248494]
[1625356141464,50.5485,2227.0,2225.6,16.406863]
[1625356141564,50.5485,2227.0,2224.9,49.9457]